bitfinex/quotes_SOLUSD_20250206
["timestamp","ask_amount","ask_price","bid_price","bid_amount"]
[1738879965427,0.0001,191.76,191.75,64.37132056]
[1738879966294,0.0001,191.76,191.75,69.58642056]
[1738879966813,0.0001,191.76,191.75,84.37473909]
[1738879967023,0.0001,191.76,191.75,83.37473909]
[1738879967224,0.0001,191.76,191.75,49.58642056]
[1738879967397,0.0001,191.76,191.69,6.5616]
[1738879967604,0.0001,191.76,191.71,38.17272056]
[1738879967920,0.0001,191.76,191.73,38.17272056]
[1738879968123,0.0001,191.76,191.74,38.17272056]
[1738879968494,38.17272056,191.86,191.75,38.17272056]
[1738879968710,38.17272056,191.86,191.79,38.17272056]
[1738879969023,38.17272056,191.85,191.77,38.17272056]
[1738879969228,38.17272056,191.82,191.74,58.17272056]
[1738879969528,38.17272056,191.83,191.75,38.17272056]
[1738879969707,6.2307,191.89,191.73,43.38832056]
[1738879969708,38.17272056,191.8,191.73,43.38832056]
[1738879970227,38.17272056,191.8,191.73,38.17272056]
[1738879971323,38.17272056,191.78,191.7,5.2164]
[1738879971505,38.17272056,191.76,191.69,0.03]
[1738879971705,38.17272056,191.74,191.69,0.03]
[1738879972003,1.6494,191.79,191.69,0.03]
[1738879972004,38.17272056,191.72,191.69,0.03]
[1738879972211,38.17272056,191.7,191.69,0.03]
[1738879973227,30.0,191.85,191.73,5.2156]
[1738879973396,38.17272056,191.84,191.75,38.17272056]
[1738879973600,39.82212056,191.86,191.77,38.17272056]
[1738879973920,39.82212056,191.86,191.75,38.17272056]
[1738879973921,38.17272056,191.84,191.75,38.17272056]
[1738879974422,39.82212056,191.86,191.77,38.17272056]
[1738879974725,38.17272056,191.86,191.77,38.17272056]
[1738879975021,44.59872056,191.88,191.79,38.17272056]
[1738879975605,44.59872056,191.88,191.79,43.38652056]
[1738879975906,44.59872056,191.88,191.79,38.17272056]
[1738879976105,44.59872056,191.88,191.77,43.38712056]
[1738879976106,38.17272056,191.86,191.77,43.38712056]
[1738879976318,6.426,191.88,191.79,38.17272056]
[1738879976319,44.59872056,191.88,191.79,38.17272056]
[1738879977125,38.17272056,191.83,191.75,43.38762056]
[1738879977297,38.17272056,191.83,191.75,38.17272056]
[1738879977606,38.17272056,191.79,191.71,38.17272056]
[1738879977809,38.17272056,191.81,191.71,38.17272056]
[1738879978116,38.17272056,191.81,191.73,38.17272056]
[1738879978328,38.17272056,191.83,191.75,38.17272056]
[1738879979314,38.17272056,191.83,191.75,43.38762056]
[1738879979631,38.17272056,191.85,191.77,38.17272056]
[1738879979832,38.17272056,191.87,191.79,38.17272056]
[1738879980345,0.063,191.88,191.85,38.17272056]
[1738879981630,0.063,191.88,191.83,38.17272056]
[1738879981835,0.063,191.88,191.79,58.17272056]
[1738879982043,38.17272056,191.87,191.79,58.17272056]
[1738879982215,0.063,191.88,191.83,38.17272056]
[1738879982640,38.17272056,191.85,191.77,38.17272056]
[1738879983220,38.17272056,191.81,191.73,43.38832056]
[1738879984138,38.17272056,191.81,191.73,38.17272056]
[1738879986038,1.5299,191.85,191.79,38.17272056]
[1738879986228,38.23572056,191.88,191.79,38.17272056]
[1738879986737,38.23572056,191.88,191.74,38.17272056]
[1738879986738,38.17272056,191.82,191.74,38.17272056]
[1738879987042,38.17272056,191.8,191.72,38.17272056]
[1738879987243,38.17272056,191.82,191.74,38.17272056]
[1738879988119,38.17272056,191.86,191.78,38.17272056]
[1738879988320,38.23572056,191.88,191.8,38.17272056]
[1738879988648,0.063,191.88,191.82,38.17272056]
[1738879990026,0.063,191.88,191.86,38.17272056]
[1738879990942,0.063,191.88,191.87,5.2118]
[1738879991147,0.063,191.88,191.86,38.17272056]
[1738879991330,0.063,191.88,191.86,43.38472056]
[1738879991745,0.063,191.88,191.86,38.17272056]
[1738879992053,0.063,191.88,191.82,38.17272056]
[1738879992552,38.23572056,191.88,191.8,38.17272056]
[1738879992853,38.17272056,191.82,191.76,38.17272056]
[1738879993034,38.17272056,191.82,191.74,43.38782056]
[1738879993613,38.17272056,191.82,191.74,38.17272056]
[1738879994020,38.17272056,191.8,191.73,0.03]
[1738879994726,38.17272056,191.82,191.74,38.17272056]
[1738879996546,39.73492056,191.84,191.74,43.38802056]
[1738879996727,38.17272056,191.84,191.76,38.17272056]
[1738879997136,38.17272056,191.86,191.78,38.17272056]
[1738879997519,38.23572056,191.88,191.78,38.17272056]
[1738879997826,38.23572056,191.88,191.84,38.17272056]
[1738879997827,0.063,191.88,191.84,38.17272056]
[1738879998039,0.063,191.88,191.86,38.17272056]
[1738879999122,0.063,191.88,191.87,5.99328002]
[1738879999542,0.063,191.88,191.87,43.38452056]
[1738880002250,0.063,191.88,191.85,38.17272056]
[1738880002750,0.063,191.88,191.8,58.70511056]
[1738880002751,38.17272056,191.87,191.8,5.2137]
[1738880002952,38.17272056,191.85,191.77,38.17272056]
[1738880003142,38.17272056,191.81,191.73,43.41802056]
[1738880003449,38.17272056,191.83,191.75,38.17272056]
[1738880004456,38.17272056,191.83,191.76,0.03]
[1738880004750,38.17272056,191.85,191.77,38.17272056]
[1738880005648,1.0,191.84,191.78,38.17272056]
[1738880005831,2.0,191.86,191.78,38.17272056]
[1738880006035,2.0,191.86,191.8,38.17272056]
[1738880006242,2.0,191.85,191.78,38.17272056]
[1738880006423,1.0,191.85,191.78,38.17272056]
[1738880006742,1.063,191.88,191.82,38.17272056]
[1738880007046,0.063,191.88,191.84,38.17272056]
[1738880007261,2.0,191.85,191.8,38.17272056]
[1738880007616,1.0,191.85,191.8,38.17272056]
[1738880008247,1.0,191.86,191.8,38.17272056]
[1738880008550,0.063,191.88,191.84,38.17272056]
[1738880008849,0.063,191.88,191.86,38.17272056]
[1738880009219,0.063,191.88,191.85,38.17272056]
[1738880009725,1.0,191.83,191.78,38.17272056]
[1738880009924,1.0,191.85,191.8,38.17272056]
[1738880010136,2.0,191.85,191.8,38.17272056]
[1738880010331,1.0,191.85,191.8,38.17272056]
[1738880010732,2.0,191.83,191.78,38.17272056]
[1738880012133,1.0,191.83,191.78,38.17272056]
[1738880012347,2.0,191.83,191.78,38.17272056]
[1738880012523,1.0,191.83,191.78,38.17272056]
[1738880013226,2.0,191.83,191.78,38.17272056]
[1738880013936,2.0,191.84,191.78,38.17272056]
[1738880014136,1.0,191.85,191.82,38.17272056]
[1738880014338,2.0,191.86,191.8,38.17272056]
[1738880014527,1.0,191.85,191.8,38.17272056]
[1738880014932,2.0,191.86,191.8,38.17272056]
[1738880015158,0.063,191.88,191.82,38.17272056]
[1738880015363,2.063,191.88,191.82,38.17272056]
[1738880015858,1.063,191.88,191.82,38.17272056]
[1738880016049,2.063,191.88,191.82,38.17272056]
[1738880016250,0.063,191.88,191.82,38.17272056]
[1738880016451,1.063,191.88,191.82,43.38572056]
[1738880016759,2.0,191.87,191.82,5.213]
[1738880017664,2.0,191.87,191.81,5.2134]
[1738880018937,1.0,191.87,191.81,5.2134]
[1738880019461,1.0,191.84,191.8,38.17272056]
[1738880019765,1.0,191.85,191.78,43.38672056]
[1738880019766,2.0,191.85,191.78,43.38672056]
[1738880020560,1.0,191.85,191.78,43.38672056]
[1738880021759,40.17272056,191.86,191.78,43.38672056]
[1738880021947,1.0,191.85,191.78,43.38672056]
[1738880022449,1.0,191.84,191.78,43.38672056]
[1738880022643,2.0,191.83,191.77,28.72246327]
[1738880022858,2.0,191.84,191.77,28.72246327]
[1738880023372,1.0,191.84,191.77,28.72246327]
[1738880023563,1.0,191.87,191.81,23.50796327]
[1738880023866,1.0,191.86,191.81,23.50796327]
[1738880025165,1.0,191.83,191.77,0.78193104]
[1738880025348,1.0,191.84,191.76,24.81849281]
[1738880025552,1.0,191.84,191.78,23.50796327]
[1738880026140,2.063,191.88,191.82,23.50796327]
[1738880027565,2.063,191.88,191.82,28.72106327]
[1738880027741,2.0,191.87,191.82,28.72106327]
[1738880028405,2.0,191.84,191.78,24.84485982]
[1738880028663,2.0,191.83,191.78,30.05905982]
[1738880028866,1.0,191.83,191.78,30.05905982]
[1738880030348,2.0,191.83,191.78,30.05905982]
[1738880030546,23.50796327,191.85,191.74,23.50796327]
[1738880030547,1.0,191.79,191.74,23.50796327]
[1738880030750,1.0,191.78,191.72,5.2159]
[1738880031048,2.6564,191.83,191.77,23.50796327]
[1738880031249,1.0,191.8,191.75,43.50796327]
[1738880031471,27.16436327,191.83,191.75,43.50796327]
[1738880031677,2.0,191.82,191.75,43.50796327]
[1738880031976,1.0,191.82,191.75,43.50796327]
[1738880032192,1.0,191.8,191.75,43.50796327]
[1738880032388,25.50796327,191.78,191.71,0.03]
[1738880032586,24.50796327,191.76,191.71,0.03]
[1738880032778,25.50796327,191.76,191.71,0.03]
[1738880033090,25.50796327,191.76,191.71,20.03]
[1738880033283,2.0,191.74,191.71,0.03]
[1738880035271,1.0,191.72,191.71,0.03]
[1738880035459,24.50796327,191.75,191.71,0.03]
[1738880035785,2.0,191.78,191.73,23.50796327]
[1738880035971,2.0,191.78,191.71,0.03]
[1738880035972,1.0,191.76,191.71,23.53796327]
[1738880036289,14.19391347,191.84,191.67,0.03]
[1738880036290,23.50796327,191.72,191.67,0.03]
[1738880036490,8.6822,191.74,191.67,0.03]
[1738880036491,1.0,191.68,191.67,0.03]
[1738880036792,25.50796327,191.68,191.67,0.03]
[1738880036973,1.0,191.68,191.67,0.03]
[1738880037287,24.50796327,191.68,191.67,0.03]
[1738880037473,25.50796327,191.68,191.67,0.03]
[1738880037671,1.0,191.68,191.67,0.03]
[1738880038292,25.50796327,191.68,191.67,0.03]
[1738880038588,24.50796327,191.68,191.67,0.03]
[1738880038790,1.0,191.59,191.58,2.109474]
[1738880038983,1.0,191.58,191.53,5.2209]
[1738880039185,1.5139,191.63,191.54,23.50796327]
[1738880039186,1.0,191.62,191.54,23.50796327]
[1738880039365,1.0,191.55,191.51,0.03]
[1738880039565,1.0,191.54,191.51,0.03]
[1738880039861,1.0,191.52,191.51,0.03]
[1738880040497,2.0,191.52,191.51,0.03]
[1738880040872,1.0,191.41,191.39,7.94457611]
[1738880041387,7.5897,191.4,191.39,7.94457611]
[1738880041782,8.5897,191.4,191.39,7.94457611]
[1738880041972,1.0,191.41,191.39,7.94457611]
[1738880042294,31.0,191.4,191.39,7.94457611]
[1738880042466,1.0,191.42,191.39,7.94457611]
[1738880042674,1.0,191.46,191.41,38.34139268]
[1738880042990,1.0,191.45,191.39,46.28596879]
[1738880043187,2.0,191.54,191.43,38.34139268]
[1738880043365,1.0,191.56,191.43,0.78325169]
[1738880043569,1.0,191.48,191.42,20.0]
[1738880043789,1.0,191.49,191.42,20.0]
[1738880044002,1.0,191.55,191.43,0.78350257]
[1738880044301,8.01912583,191.56,191.48,13.78831853]
[1738880044473,8.01912583,191.56,191.54,38.34139268]
[1738880044679,8.01912583,191.56,191.55,5.2205]
[1738880044897,8.01912583,191.56,191.54,38.34139268]
[1738880044898,4.75912583,191.56,191.54,38.34139268]
[1738880045073,5.75912583,191.56,191.55,13.41184853]
[1738880045265,5.75912583,191.56,191.45,0.78278671]
[1738880045588,1.0,191.68,191.49,20.0]
[1738880045589,1.0,191.57,191.49,20.0]
[1738880045907,1.0,191.55,191.49,20.0]
[1738880046089,1.0,191.65,191.54,20.0]
[1738880046392,1.0,191.65,191.6,38.34139268]
[1738880046393,1.0,191.63,191.6,38.34139268]
[1738880046690,1.0,191.65,191.6,38.34139268]
[1738880046896,1.0,191.66,191.6,38.34139268]
[1738880047366,1.0,191.63,191.6,38.34139268]
[1738880047569,1.0,191.67,191.6,38.34139268]
[1738880047764,2.0,191.71,191.62,38.34139268]
[1738880047977,1.0,191.69,191.62,38.34139268]
[1738880048178,2.0,191.71,191.64,38.34139268]
[1738880048388,2.0,191.7,191.64,38.34139268]
[1738880048590,1.0,191.68,191.6,38.34139268]
[1738880048806,1.0,191.7,191.62,38.34139268]
[1738880049095,1.0,191.68,191.62,38.34139268]
[1738880049765,2.0,191.68,191.62,38.34139268]
[1738880049967,1.0,191.67,191.62,38.34139268]
[1738880050500,1.0,191.66,191.62,38.34139268]
[1738880050796,1.0,191.69,191.62,38.34139268]
[1738880050985,1.0,191.71,191.64,38.34139268]
[1738880051185,1.0,191.74,191.68,38.34139268]
[1738880051400,1.0,191.73,191.68,38.34139268]
[1738880051576,7.0223,191.75,191.68,38.34139268]
[1738880051779,2.0,191.72,191.66,58.34139268]
[1738880052087,1.0,191.71,191.67,20.0]
[1738880052285,1.0,191.71,191.64,43.55939268]
[1738880052286,1.0,191.71,191.64,38.34139268]
[1738880052597,1.0,191.71,191.61,14.72973949]
[1738880052598,2.0,191.68,191.62,38.34139268]
[1738880052895,15.16593853,191.78,191.66,38.34139268]
[1738880052896,1.0,191.73,191.66,38.34139268]
[1738880053100,1.0,191.69,191.66,38.34139268]
[1738880053279,1.0,191.68,191.66,38.34139268]
[1738880053596,1.0,191.73,191.66,43.55879268]
[1738880053795,1.0,191.75,191.7,38.34139268]
[1738880053984,1.0,191.74,191.7,38.34139268]
[1738880054495,1.0,191.75,191.7,38.34139268]
[1738880054702,1.0,191.71,191.7,38.34139268]
[1738880054905,1.063,191.71,191.7,38.34139268]
[1738880055094,0.063,191.71,191.7,38.34139268]
[1738880055586,0.063,191.71,191.7,96.46978033]
[1738880055792,0.063,191.71,191.7,96.09331033]
[1738880055991,38.34139268,191.85,191.7,96.09331033]
[1738880055992,1.0,191.83,191.71,0.25098]
[1738880056294,1.0,191.84,191.79,38.34139268]
[1738880056482,2.0,191.82,191.79,38.34139268]
[1738880056812,1.0,191.82,191.79,38.34139268]
[1738880057107,2.0,191.82,191.79,38.34139268]
[1738880057512,1.0,191.8,191.77,38.34139268]
[1738880058315,1.0,191.84,191.79,38.34139268]
[1738880058897,39.34139268,191.8,191.73,58.34139268]
[1738880059093,1.0,191.8,191.75,38.34139268]
[1738880059411,1.0,191.83,191.79,38.34139268]
[1738880059613,1.0,191.84,191.81,38.34139268]
[1738880059921,1.0,191.8,191.77,38.34139268]
[1738880061613,1.0,191.79,191.77,38.34139268]
[1738880061992,1.0,191.78,191.77,38.34139268]
[1738880062706,1.0,191.81,191.77,23.51096161]
[1738880062896,1.0,191.84,191.8,23.51096161]
[1738880063091,2.0,191.83,191.8,23.51096161]
[1738880063415,1.0,191.82,191.78,23.51096161]
[1738880063824,2.0,191.83,191.78,23.51096161]
[1738880064109,1.0,191.82,191.8,23.51096161]
[1738880064318,2.0,191.82,191.8,23.51096161]
[1738880064816,2.0,191.81,191.78,23.51096161]
[1738880065114,1.0,191.82,191.78,23.51096161]
[1738880065491,1.0,191.82,191.76,5.99654025]
[1738880065492,1.0,191.77,191.76,23.51096161]
[1738880066126,1.0,191.76,191.72,23.51096161]
[1738880066415,2.0,191.76,191.73,23.51096161]
[1738880067223,1.0,191.74,191.7,23.54096161]
[1738880067414,1.063,191.77,191.72,23.51096161]
[1738880067722,0.063,191.77,191.75,23.51096161]
[1738880069121,0.063,191.77,191.75,29.50796608]
[1738880069308,0.063,191.77,191.76,13.41184853]
[1738880069508,0.063,191.77,191.76,36.92281014]
[1738880070222,0.063,191.77,191.76,23.51096161]
[1738880070426,1.0,191.84,191.76,24.29293154]
[1738880070604,1.0,191.84,191.81,23.51096161]
[1738880070812,0.063,191.86,191.85,20.0]
[1738880071000,2.0,191.94,191.86,13.41184853]
[1738880071205,2.0,191.95,191.93,23.51096161]
[1738880071427,1.0,191.94,191.93,23.51096161]
[1738880071804,2.0,191.95,191.91,23.51096161]
[1738880072116,1.0,191.93,191.91,23.51096161]
[1738880072613,1.0,191.93,191.92,38.14811973]
[1738880073106,1.0,191.94,191.92,38.14811973]
[1738880073454,2.0,191.91,191.88,38.14811973]
[1738880073613,2.0,191.89,191.86,38.14811973]
[1738880073803,1.0,191.89,191.86,38.14811973]
[1738880074325,2.0,191.89,191.86,38.14811973]
[1738880074497,1.0,191.88,191.86,38.14811973]
[1738880074902,2.0,191.84,191.81,38.14811973]
[1738880075101,1.0,191.84,191.81,38.14811973]
[1738880075429,1.0,191.83,191.81,38.14811973]
[1738880076805,1.0,191.82,191.79,43.36211973]
[1738880079434,1.0,191.84,191.81,43.36141973]
[1738880079633,2.0,191.84,191.8,38.14811973]
[1738880079810,1.0,191.82,191.8,38.14811973]
[1738880080725,2.0,191.83,191.8,38.14811973]
[1738880081033,1.0,191.81,191.8,38.14811973]
[1738880082035,1.0,191.79,191.77,39.4518096]
[1738880082206,1.0,191.79,191.77,38.14811973]
[1738880082411,1.0,191.8,191.76,43.39291973]
[1738880082412,1.0,191.78,191.76,43.39291973]
[1738880083614,1.0,191.78,191.76,44.69726187]
[1738880083927,1.0,191.77,191.76,38.17811973]
[1738880084133,2.0,191.77,191.76,0.03]
[1738880084832,3.5896,191.77,191.76,0.03]
[1738880085128,9.8456,191.77,191.76,0.03]
[1738880085835,10.62766494,191.77,191.76,0.03]
[1738880086007,10.62766494,191.77,191.7,0.03]
[1738880086008,2.0,191.71,191.7,0.03]
[1738880086215,40.14811973,191.71,191.7,0.03]
[1738880087131,41.05567467,191.71,191.7,0.03]
[1738880087308,1.0,191.58,191.56,38.14811973]
[1738880087508,1.0,191.52,191.51,0.03]
[1738880087705,2.0,191.52,191.51,0.03]
[1738880088207,1.0,191.52,191.51,0.03]
[1738880088414,2.0,191.55,191.51,0.03]
[1738880088614,1.0,191.55,191.53,38.14811973]
[1738880088914,1.0,191.54,191.53,38.14811973]
[1738880089315,2.0,191.55,191.53,38.14811973]
[1738880089512,2.0,191.52,191.51,0.03]
[1738880089716,40.14811973,191.52,191.51,0.03]
[1738880090437,42.64527467,191.52,191.51,0.03]
[1738880090736,1.0,191.43,191.41,38.14811973]
[1738880091117,2.0,191.46,191.41,43.37241973]
[1738880091417,7.8456,191.52,191.41,43.37241973]
[1738880091418,1.0,191.47,191.43,38.14811973]
[1738880091632,2.0,191.46,191.41,38.14811973]
[1738880092235,1.0,191.45,191.41,38.14811973]
[1738880092636,1.0,191.45,191.43,38.14811973]
[1738880092808,1.0,191.44,191.43,38.14811973]
[1738880093009,1.0,191.43,191.41,43.37231973]
[1738880093428,1.0,191.42,191.41,43.37231973]
[1738880093639,1.0,191.42,191.41,38.14811973]
[1738880093947,1.0,191.45,191.41,43.37241973]
[1738880094143,1.0,191.45,191.43,38.14811973]
[1738880094435,2.0,191.45,191.43,38.14811973]
[1738880094737,1.0,191.45,191.43,23.59459567]
[1738880097438,1.0,191.45,191.43,28.81819567]
[1738880098339,1.0,191.46,191.39,5.2249]
[1738880098340,1.0,191.4,191.39,5.2249]
[1738880098661,1.0,191.38,191.36,23.59459567]
[1738880098817,1.0,191.43,191.37,1.33849822]
[1738880099014,2.0,191.5,191.42,23.59459567]
[1738880099331,2.0,191.51,191.49,23.59459567]
[1738880099537,1.0,191.51,191.49,23.59459567]
[1738880099733,1.0,191.5,191.49,28.81679567]
[1738880099932,1.0,191.52,191.49,28.81679567]
[1738880100137,2.0,191.52,191.49,28.81679567]
[1738880100331,2.0,191.55,191.51,23.59459567]
[1738880100513,2.0,191.56,191.53,23.59459567]
[1738880100719,1.0,191.51,191.5,23.59459567]
[1738880101146,2.0,191.51,191.5,23.59459567]
[1738880102145,1.0,191.47,191.42,0.78311006]
[1738880102348,1.0,191.42,191.39,23.59459567]
[1738880102525,1.0,191.41,191.37,23.59459567]
[1738880102735,1.0,191.42,191.37,5.2253]
[1738880103226,6.4569,191.47,191.35,5.2258]
[1738880103227,1.0,191.39,191.35,5.2258]
[1738880103427,1.0,191.46,191.4,20.0]
[1738880103627,2.0,191.53,191.46,20.0]
[1738880103937,1.5986,191.56,191.52,23.59459567]
[1738880103938,1.0,191.56,191.52,23.59459567]
[1738880104127,1.0,191.56,191.55,23.59459567]
[1738880104330,8.0555,191.62,191.5,23.59459567]
[1738880104331,1.0,191.52,191.5,23.59459567]
[1738880104537,1.0,191.53,191.51,23.59459567]
[1738880104735,1.0,191.57,191.52,23.59459567]
[1738880104942,1.0,191.56,191.55,23.59459567]
[1738880105743,1.0,191.6,191.55,24.37750262]
[1738880105959,1.0,191.61,191.58,23.59459567]
[1738880106250,1.0,191.6,191.58,23.59459567]
[1738880106634,1.0,191.61,191.58,23.59459567]
[1738880106834,1.0,191.61,191.6,23.59459567]
[1738880107138,1.0,191.62,191.6,23.59459567]
[1738880107452,1.0,191.64,191.6,23.59459567]
[1738880107747,25.19319567,191.68,191.6,23.59459567]
[1738880107748,1.0,191.68,191.62,23.59459567]
[1738880107954,1.0,191.69,191.65,23.59459567]
[1738880108249,2.0,191.71,191.68,23.59459567]
[1738880108451,1.0,191.71,191.7,23.59459567]
[1738880108636,1.0,191.7,191.69,23.59459567]
[1738880108840,1.0,191.73,191.69,23.59459567]
[1738880109025,1.0,191.71,191.69,28.81129567]
[1738880109223,2.0,191.69,191.67,23.59459567]
[1738880109531,1.0,191.67,191.64,23.59459567]
[1738880109740,1.0,191.66,191.64,23.59459567]
[1738880110045,23.59459567,191.72,191.56,5.2202]
[1738880110046,1.0,191.61,191.56,5.2202]
[1738880110364,1.0,191.55,191.49,0.03]
[1738880110529,1.0,191.57,191.5,18.2767]
[1738880110729,1.0,191.55,191.5,18.2767]
[1738880111044,2.0,191.57,191.54,23.59459567]
[1738880111245,2.0,191.55,191.54,23.59459567]
[1738880111555,1.0,191.57,191.54,23.59459567]
[1738880111733,1.0,191.57,191.5,23.59459567]
[1738880111734,1.0,191.59,191.56,23.59459567]
[1738880111931,1.0,191.59,191.58,23.59459567]
[1738880112144,1.0,191.59,191.52,0.78274724]
[1738880112145,1.0,191.57,191.56,23.59459567]
[1738880112330,2.0,191.55,191.54,23.59459567]
[1738880112533,2.0,191.56,191.54,23.59459567]
[1738880112957,1.0,191.55,191.54,23.59459567]
[1738880113254,2.0,191.55,191.54,23.59459567]
[1738880113434,1.0,191.52,191.51,23.59459567]
[1738880113629,8.23896494,191.65,191.49,23.62459567]
[1738880113630,2.0,191.5,191.49,23.62459567]
[1738880113937,1.0,191.5,191.49,23.62459567]
[1738880114847,1.0,191.5,191.49,28.84679567]
[1738880115048,2.0,191.52,191.49,28.84679567]
[1738880115255,2.0,191.52,191.51,23.59459567]
[1738880115758,2.0,191.55,191.51,23.59459567]
[1738880115933,1.0,191.55,191.53,23.59459567]
[1738880116335,1.0,191.57,191.53,23.59459567]
[1738880116529,1.0,191.59,191.56,23.59459567]
[1738880116870,1.0,191.59,191.57,23.59459567]
[1738880117036,1.0,191.59,191.57,28.81439567]
[1738880117361,2.0,191.65,191.58,0.78275232]
[1738880117541,2.0,191.65,191.64,23.59459567]
[1738880117745,2.0,191.65,191.62,23.59459567]
[1738880118163,1.0,191.63,191.62,23.59459567]
[1738880118364,1.0,191.63,191.62,28.81319567]
[1738880118541,2.0,191.63,191.62,28.81319567]
[1738880119430,2.0,191.6,191.55,0.78261259]
[1738880119743,2.0,191.6,191.57,23.59459567]
[1738880119744,1.0,191.6,191.57,23.59459567]
[1738880119946,1.0,191.63,191.59,23.59459567]
[1738880120273,1.0,191.63,191.62,23.59459567]
[1738880120442,1.0,191.66,191.62,23.59459567]
[1738880120443,2.0,191.67,191.62,23.59459567]
[1738880120647,1.0,191.66,191.65,23.59459567]
[1738880120985,2.0,191.68,191.65,23.59459567]
[1738880121128,2.0,191.68,191.61,0.78249214]
[1738880121129,1.0,191.7,191.67,23.59459567]
[1738880121330,0.063,191.71,191.69,23.59459567]
[1738880121554,0.063,191.71,191.69,28.81119567]
[1738880121555,1.0,191.7,191.69,28.81119567]
[1738880121754,2.0,191.7,191.69,28.81119567]
[1738880121950,2.063,191.71,191.69,28.81119567]
[1738880122130,0.063,191.71,191.7,23.59459567]
[1738880122342,0.063,191.71,191.7,47.18919134]
[1738880123071,0.0001,191.71,191.7,60.97750987]
[1738880123258,0.063,191.77,191.74,20.12549]
[1738880123564,0.063,191.77,191.76,23.59459567]
[1738880124155,0.063,191.77,191.76,24.37656573]
[1738880124361,0.063,191.77,191.76,43.37968426]
[1738880124362,0.0001,191.77,191.76,43.37968426]
[1738880124671,1.0001,191.77,191.76,38.21445412]
[1738880124873,0.9801,191.83,191.76,38.21445412]
[1738880125167,0.9801,191.83,191.82,38.21445412]
[1738880125470,1.0431,191.88,191.82,38.21445412]
[1738880125650,1.0431,191.88,191.87,38.21445412]
[1738880126482,1.0431,191.88,191.87,43.42625412]
[1738880126964,1.0431,191.88,191.87,57.21457265]
[1738880126965,0.0001,191.88,191.87,57.21457265]
[1738880127473,0.0001,191.88,191.87,95.42902677]
[1738880127648,0.0001,191.88,191.87,96.21030948]
[1738880127844,0.0001,191.88,191.87,44.20753683]
[1738880128071,0.0001,191.88,191.87,43.42625412]
[1738880128249,0.9802,191.88,191.87,38.21445412]
[1738880128449,1.9802,191.88,191.87,38.21445412]
[1738880128758,0.9801,191.82,191.76,0.78159594]
[1738880128965,1.9802,191.88,191.77,5.2145]
[1738880129148,0.0001,191.88,191.79,13.78831853]
[1738880129351,0.9802,191.88,191.84,20.0]
[1738880129547,0.9802,191.88,191.85,0.78152216]
[1738880129765,0.0001,191.88,191.87,38.21445412]
[1738880130491,0.0001,191.88,191.87,44.20777919]
[1738880131164,0.0001,191.88,191.87,57.99609772]
[1738880131366,0.0001,191.88,191.87,96.21055184]
[1738880131894,1.063,191.96,191.87,96.33604184]
[1738880131895,0.063,191.96,191.87,96.33604184]
[1738880132186,0.063,191.96,191.95,51.75179265]
[1738880132394,0.063,191.96,191.95,52.53285974]
[1738880132895,0.063,191.97,191.96,0.25098]
[1738880133061,0.063,191.97,191.96,38.46543412]
[1738880133679,1.0431,191.97,191.96,38.21445412]
[1738880133887,1.9801,191.96,191.95,38.21445412]
[1738880134068,0.9801,191.95,191.94,38.21445412]
[1738880134273,0.063,191.97,191.95,13.53733853]
[1738880134598,0.0001,191.97,191.96,14.5693701]
[1738880134969,0.0001,191.97,191.96,90.99827834]
[1738880135293,1.0,192.04,192.0,20.0]
[1738880135497,1.0,192.04,192.03,38.21445412]
[1738880135673,0.9801,192.02,192.01,38.21445412]
[1738880135875,1.0,192.02,192.01,43.42245412]
[1738880136386,1.063,192.05,192.02,0.12549]